[Event "17th Memorial Lezcano Montalvo 2025"]
[Site "Gran Canaria"]
[Date "2025.04.19"]
[Round "8.15"]
[White "Sosa Suarez, Carla Cristina"]
[Black "Garcia Padron, Jose"]
[Result "0-1"]
[Annotator "RC"]
[ECO "C46"]
[WhiteElo "2056"]
[BlackElo "2355"]
[PlyCount "76"]
[EventDate "2025.04.13"]
[EventType "swiss"]
[EventCountry "ESP"]
[SourceTitle "playchess.com"]
[Source "ChessBase"]
[SourceQuality "1"]
[TimeControl "5400+30"]

1. e4 {[%emt 0:00:02]} e5 {[%emt 0:04:12]} 2. Nf3 {[%emt 0:00:05]} Nc6 {[%emt 0:00:06]} 3. Nc3 {[%emt 0:00:05]} d6 {[%emt 0:01:03]} 4. d4 {[%emt 0:00:18]} Bd7 {[%emt 0:00:30]} 5. Be3 {[%emt 0:04:22]} Nf6 {[%emt 0:05:59]} 6. h3 {[%emt 0:00:41]} Be7 {[%emt 0:02:46]} 7. d5 {[%emt 0:09:57]} Nb8 {[%emt 0:02:41]} 8. Qd2 {[%emt 0:03:17]} O-O {[%emt 0:15:29]} 9. Be2 {[%emt 0:02:46]} a5 {[%emt 0:00:30]} 10. a4 {[%emt 0:07:09]} Na6 {[%emt 0:00:33]} 11. Bxa6 {[%emt 0:04:50]} Rxa6 {[%emt 0:01:03]} 12. Qe2 {[%emt 0:02:45]} Ne8 {[%emt 0:13:45]} 13. g4 {[%emt 0:00:42]} Ra8 {[%emt 0:01:43]} 14. Nb1 {[%emt 0:12:25]} c6 {[%emt 0:05:34]} 15. c4 {[%emt 0:00:51]} cxd5 {[%emt 0:02:14]} 16. cxd5 {[%emt 0:00:04]} g6 {[%emt 0:00:09]} 17. Nc3 {[%emt 0:01:52]} Ng7 {[%emt 0:02:32]} 18. Rg1 {[%emt 0:02:10]} Kh8 {[%emt 0:01:16]} 19. Bh6 {[%emt 0:09:23]} Rc8 {[%emt 0:01:53]} 20. h4 {[%emt 0:01:04]} Rg8 {[%emt 0:01:26]} 21. h5 {[%emt 0:12:58]} gxh5 {[%emt 0:09:51]} 22. gxh5 {[%emt 0:04:06]} Nxh5 {[%emt 0:00:29]} 23. O-O-O {[%emt 0:02:53]} Nf6 {[%emt 0:07:07]} 24. Ng5 {[%emt 0:02:36]} Qe8 {[%emt 0:00:42]} 25. Kb1 {[%emt 0:00:32]} Rg6 {[%emt 0:00:16]} 26. Rh1 {[%emt 0:05:26]} Ng4 {[%emt 0:04:39]} 27. Rdg1 {[%emt 0:05:20]} Nxh6 {[%emt 0:01:55]} 28. Qd2 {[%emt 0:03:44]} Qg8 {[%emt 0:04:16]} 29. Rxh6 {[%emt 0:01:20]} Rxg5 {[%emt 0:02:32]} 30. Rgh1 {[%emt 0:00:53]} Rg1+ {[%emt 0:00:12]} 31. Ka2 {[%emt 0:00:08]} Rxh1 {[%emt 0:00:12]} 32. Rxh1 {[%emt 0:00:02]} Qg5 {[%emt 0:00:27]} 33. Qe2 {[%emt 0:00:31]} Bd8 {[%emt 0:04:05]} 34. f4 {[%emt 0:00:52]} exf4 {[%emt 0:00:17]} 35. Rh5 {[%emt 0:00:50]} Qg7 {[%emt 0:00:08]} 36. Qh2 {[%emt 0:00:18]} Bf6 {[%emt 0:01:21]} 37. Qxf4 {[%emt 0:00:30]} Be5 {[%emt 0:01:00]} 38. Qh4 {[%emt 0:00:20]} f6 {[%emt 0:00:24]} 0-1

[Event "17th Memorial Lezcano Montalvo 2025"]
[Site "Gran Canaria"]
[Date "2025.04.19"]
[Round "8.16"]
[White "Roquero Redondo, Miguel"]
[Black "Matnadze Bujiashvili, Ann"]
[Result "1-0"]
[Annotator "RC"]
[ECO "B12"]
[WhiteElo "2037"]
[BlackElo "2329"]
[PlyCount "72"]
[EventDate "2025.04.13"]
[EventType "swiss"]
[EventCountry "ESP"]
[SourceTitle "playchess.com"]
[Source "ChessBase"]
[SourceQuality "1"]
[TimeControl "5400+30"]

1. e4 {[%emt 0:00:04]} c6 {[%emt 0:00:09]} 2. d4 {[%emt 0:00:07]} d5 {[%emt 0:00:08]} 3. e5 {[%emt 0:00:57]} Bf5 {[%emt 0:01:02]} 4. Nd2 {[%emt 0:01:01]} h5 {[%emt 0:00:44]} 5. Ngf3 {[%emt 0:01:17]} e6 {[%emt 0:01:48]} 6. Nb3 {[%emt 0:00:17]} Nd7 {[%emt 0:00:56]} 7. Be2 {[%emt 0:01:56]} Bg4 {[%emt 0:02:57]} 8. a4 {[%emt 0:05:50]} a5 {[%emt 0:02:57]} 9. h3 {[%emt 0:02:12]} Bxf3 {[%emt 0:00:06]} 10. Bxf3 {[%emt 0:00:09]} g6 {[%emt 0:00:14]} 11. O-O {[%emt 0:02:49]} Nh6 {[%emt 0:01:22]} 12. Bd2 {[%emt 0:05:41]} Nf5 {[%emt 0:00:55]} 13. Qe1 {[%emt 0:03:35]} b6 {[%emt 0:05:13]} 14. Rc1 {[%emt 0:01:50]} g5 {[%emt 0:10:51]} 15. g3 {[%emt 0:09:09]} g4 {[%emt 0:28:50]} 16. hxg4 {[%emt 0:02:29]} hxg4 {[%emt 0:00:05]} 17. Bxg4 {[%emt 0:05:06]} Nh4 {[%emt 0:01:33]} 18. f3 {[%emt 0:02:44]} Ng6 {[%emt 0:39:40]} 19. c4 {[%emt 0:05:13]} Nb8 {[%emt 0:00:00]} 20. c5 {[%emt 0:04:36]} Na6 {[%emt 0:00:00]} 21. f4 {[%emt 0:02:18]} Rg8 {[%emt 0:00:00]} 22. f5 {[%emt 0:05:26]} Nh4 {[%emt 0:00:00]} 23. Bh5 {[%emt 0:03:35]} Nxf5 {[%emt 0:00:00]} 24. Rxf5 {[%emt 0:01:12]} exf5 {[%emt 0:00:00]} 25. e6 {[%emt 0:00:05]} Rg7 {[%emt 0:00:00]} 26. Qe5 {[%emt 0:07:00]} bxc5 {[%emt 0:00:00]} 27. exf7+ {[%emt 0:00:40]} Kd7 {[%emt 0:00:00]} 28. Qxf5+ {[%emt 0:00:16]} Kc7 {[%emt 0:00:00]} 29. Bxa5+ {[%emt 0:00:08]} Kb7 {[%emt 0:00:00]} 30. Bxd8 {[%emt 0:00:41]} Rxd8 {[%emt 0:00:00]} 31. g4 {[%emt 0:02:48]} c4 {[%emt 0:00:00]} 32. Qe6 {[%emt 0:03:35]} Kb6 {[%emt 0:00:00]} 33. a5+ {[%emt 0:01:44]} Kb5 {[%emt 0:00:00]} 34. Nd2 {[%emt 0:00:32]} Nc7 {[%emt 0:00:00]} 35. Qe5 {[%emt 0:00:54]} Rd7 {[%emt 0:00:00]} 36. Nxc4 {[%emt 0:00:45]} Rdxf7 {[%emt 0:00:00]} 1-0

[Event "17th Memorial Lezcano Montalvo 2025"]
[Site "Gran Canaria"]
[Date "2025.04.19"]
[Round "8.16"]
[White "Sanchez Gonzalez, Diego"]
[Black "Dubkov, Andrej"]
[Result "*"]
[Annotator "ChessBase"]
[ECO "B12"]
[WhiteElo "2025"]
[BlackElo "2307"]
[PlyCount "22"]
[EventDate "2025.04.13"]
[EventType "swiss"]
[EventCountry "ESP"]
[SourceTitle "playchess.com"]
[Source "ChessBase"]
[SourceQuality "1"]
[TimeControl "5400+30"]

1. e4 {[%emt 0:00:04]} c6 {[%emt 1:31:00]} 2. d4 {[%emt 0:00:07]} d5 {[%emt 0:00:08]} 3. e5 {[%emt 0:00:57]} Bf5 {[%emt 1:31:43]} 4. Nd2 {[%emt 0:01:01]} h5 {[%emt 0:00:44]} 5. Ngf3 {[%emt 0:01:17]} e6 {[%emt 0:01:48]} 6. Nb3 {[%emt 0:00:17]} Nd7 {[%emt 0:00:56]} 7. Be2 {[%emt 0:01:56]} Bg4 {[%emt 0:02:57]} 8. a4 {[%emt 0:05:50]} a5 {[%emt 0:02:57]} 9. h3 {[%emt 0:02:12]} Bxf3 {[%emt 0:00:06]} 10. Bxf3 {[%emt 0:00:09]} g6 {[%emt 0:00:14]} 11. O-O {[%emt 0:02:49]} Nh6 {[%emt 0:01:22]} *

[Event "17th Memorial Lezcano Montalvo 2025"]
[Site "Gran Canaria"]
[Date "2025.04.19"]
[Round "8.17"]
[White "Dubkov, Andrej"]
[Black "Fernandez Lozano, Francesc"]
[Result "1-0"]
[Annotator "RC"]
[ECO "B22"]
[WhiteElo "2307"]
[BlackElo "2042"]
[PlyCount "79"]
[EventDate "2025.04.13"]
[EventType "swiss"]
[EventCountry "ESP"]
[SourceTitle "playchess.com"]
[Source "ChessBase"]
[SourceQuality "1"]
[TimeControl "5400+30"]

1. e4 {[%emt 0:00:02]} c5 {[%emt 0:00:11]} 2. Nf3 {[%emt 0:00:04]} g6 {[%emt 0:00:06]} 3. c3 {[%emt 0:00:04]} d5 {[%emt 0:00:06]} 4. e5 {[%emt 0:00:05]} Nc6 {[%emt 0:01:01]} 5. d4 {[%emt 0:00:06]} cxd4 {[%emt 0:01:18]} 6. cxd4 {[%emt 0:00:05]} Bg4 {[%emt 0:01:31]} 7. Bb5 {[%emt 0:00:14]} Rc8 {[%emt 0:00:36]} 8. O-O {[%emt 0:00:38]} e6 {[%emt 0:00:26]} 9. Nbd2 {[%emt 0:00:24]} Bg7 {[%emt 0:05:50]} 10. h3 {[%emt 0:00:10]} Bxf3 {[%emt 0:00:11]} 11. Nxf3 {[%emt 0:00:05]} Nge7 {[%emt 0:01:29]} 12. Bg5 {[%emt 0:00:23]} O-O {[%emt 0:04:43]} 13. Rc1 {[%emt 0:11:03]} h6 {[%emt 0:06:22]} 14. Bxc6 {[%emt 0:01:44]} hxg5 {[%emt 0:08:51]} 15. Ba4 {[%emt 0:07:18]} Qb6 {[%emt 0:05:20]} 16. Qd2 {[%emt 0:01:28]} Bh6 {[%emt 0:11:09]} 17. g4 {[%emt 0:00:21]} Rxc1 {[%emt 0:02:13]} 18. Rxc1 {[%emt 0:00:11]} Rc8 {[%emt 0:01:18]} 19. Rxc8+ {[%emt 0:00:28]} Nxc8 {[%emt 0:00:02]} 20. h4 {[%emt 0:00:15]} Ne7 {[%emt 0:00:41]} 21. a3 {[%emt 0:02:39]} Nc6 {[%emt 0:06:02]} 22. Bxc6 {[%emt 0:09:55]} Qxc6 {[%emt 0:00:40]} 23. Kg2 {[%emt 0:00:46]} Qb6 {[%emt 0:03:55]} 24. Qc1 {[%emt 0:03:05]} Qd8 {[%emt 0:02:32]} 25. b4 {[%emt 0:19:52]} a6 {[%emt 0:01:54]} 26. Kf1 {[%emt 0:12:58]} Kh7 {[%emt 0:09:43]} 27. hxg5 {[%emt 0:04:32]} Bf8 {[%emt 0:00:42]} 28. Ne1 {[%emt 0:00:10]} Qd7 {[%emt 0:01:08]} 29. Nd3 {[%emt 0:00:39]} Qb5 {[%emt 0:01:54]} 30. Ke2 {[%emt 0:00:19]} Kg8 {[%emt 0:01:53]} 31. Ke3 {[%emt 0:04:09]} b6 {[%emt 0:00:35]} 32. Qc2 {[%emt 0:00:59]} Kg7 {[%emt 0:03:23]} 33. f4 {[%emt 0:00:10]} a5 {[%emt 0:01:02]} 34. a4 {[%emt 0:01:15]} Qc4 {[%emt 0:00:02]} 35. Qxc4 {[%emt 0:00:19]} dxc4 {[%emt 0:00:02]} 36. bxa5 {[%emt 0:00:11]} bxa5 {[%emt 0:01:28]} 37. Nc5 {[%emt 0:00:35]} Be7 {[%emt 0:00:36]} 38. Kd2 {[%emt 0:00:11]} Kf8 {[%emt 0:04:19]} 39. Kc3 {[%emt 0:00:05]} Ke8 {[%emt 0:00:29]} 40. Kxc4 {[%emt 0:00:06]} 1-0

[Event "17th Memorial Lezcano Montalvo 2025"]
[Site "Gran Canaria"]
[Date "2025.04.19"]
[Round "8.17"]
[White "Meneses Gonzalez, Kevin Moises"]
[Black "Sosa Suarez, Carla Cristina"]
[Result "*"]
[Annotator "ChessBase"]
[ECO "B22"]
[WhiteElo "2307"]
[BlackElo "2056"]
[PlyCount "25"]
[EventDate "2025.04.13"]
[EventType "swiss"]
[EventCountry "ESP"]
[SourceTitle "playchess.com"]
[Source "ChessBase"]
[SourceQuality "1"]
[TimeControl "5400+30"]

1. e4 {[%emt 0:00:02]} c5 {[%emt 0:00:11]} 2. Nf3 {[%emt 0:00:04]} g6 {[%emt 0:00:06]} 3. c3 {[%emt 0:00:04]} d5 {[%emt 0:00:06]} 4. e5 {[%emt 0:00:05]} Nc6 {[%emt 0:01:01]} 5. d4 {[%emt 0:00:06]} cxd4 {[%emt 0:01:18]} 6. cxd4 {[%emt 0:00:05]} Bg4 {[%emt 0:01:31]} 7. Bb5 {[%emt 0:00:14]} Rc8 {[%emt 0:00:36]} 8. O-O {[%emt 0:00:38]} e6 {[%emt 0:00:26]} 9. Nbd2 {[%emt 0:00:24]} Bg7 {[%emt 0:05:50]} 10. h3 {[%emt 0:00:10]} Bxf3 {[%emt 0:00:11]} 11. Nxf3 {[%emt 0:00:05]} Nge7 {[%emt 0:01:29]} 12. Bg5 {[%emt 0:00:23]} O-O {[%emt 0:04:43]} 13. Rc1 {[%emt 0:11:03]} *

[Event "17th Memorial Lezcano Montalvo 2025"]
[Site "Gran Canaria"]
[Date "2025.04.19"]
[Round "8.18"]
[White "Torres Rebolledo, Marcos"]
[Black "Meneses Gonzalez, Kevin Moises"]
[Result "0-1"]
[Annotator "RC"]
[ECO "E94"]
[WhiteElo "2010"]
[BlackElo "2307"]
[PlyCount "56"]
[EventDate "2025.04.13"]
[EventType "swiss"]
[EventCountry "ESP"]
[SourceTitle "playchess.com"]
[Source "ChessBase"]
[SourceQuality "1"]
[TimeControl "5400+30"]

1. d4 {[%emt 0:00:03]} d6 {[%emt 0:00:03]} 2. c4 {[%emt 0:00:06]} e5 {[%emt 0:00:05]} 3. Nf3 {[%emt 0:00:05]} Nd7 {[%emt 0:00:13]} 4. Nc3 {[%emt 0:00:08]} Ngf6 {[%emt 0:00:09]} 5. e4 {[%emt 0:00:11]} g6 {[%emt 0:00:03]} 6. Be2 {[%emt 0:00:08]} Bg7 {[%emt 0:00:04]} 7. O-O {[%emt 0:00:11]} O-O {[%emt 0:00:03]} 8. Be3 {[%emt 0:00:14]} Qe7 {[%emt 0:00:14]} 9. d5 {[%emt 0:10:59]} Ng4 {[%emt 0:03:04]} 10. Bg5 {[%emt 0:04:16]} f6 {[%emt 0:00:10]} 11. Bh4 {[%emt 0:01:29]} g5 {[%emt 0:00:31]} 12. Bg3 {[%emt 0:00:45]} Nh6 {[%emt 0:00:04]} 13. Qd2 {[%emt 0:05:09]} a5 {[%emt 0:00:39]} 14. b3 {[%emt 0:03:33]} Nc5 {[%emt 0:00:22]} 15. Rab1 {[%emt 0:06:33]} g4 {[%emt 0:01:05]} 16. Ne1 {[%emt 0:10:25]} f5 {[%emt 0:00:28]} 17. f3 {[%emt 0:01:46]} gxf3 {[%emt 0:03:31]} 18. Bxf3 {[%emt 0:01:35]} fxe4 {[%emt 0:02:03]} 19. Nxe4 {[%emt 0:02:57]} Nxe4 {[%emt 0:00:04]} 20. Bxe4 {[%emt 0:00:28]} Rxf1+ {[%emt 0:00:04]} 21. Kxf1 {[%emt 0:00:14]} Bf5 {[%emt 0:03:14]} 22. Qd3 {[%emt 0:04:43]} Qf7 {[%emt 0:01:01]} 23. Nf3 {[%emt 0:02:02]} Qg6 {[%emt 0:07:14]} 24. Nd2 {[%emt 0:04:14]} Bxe4 {[%emt 0:15:45]} 25. Qxe4 {[%emt 0:01:32]} Nf5 {[%emt 0:00:18]} 26. Be1 {[%emt 0:11:04]} Bh6 {[%emt 0:00:27]} 27. Kg1 {[%emt 0:00:56]} Be3+ {[%emt 0:00:05]} 28. Kh1 {[%emt 0:00:27]} Bxd2 {[%emt 0:00:03]} 0-1

[Event "17th Memorial Lezcano Montalvo 2025"]
[Site "Gran Canaria"]
[Date "2025.04.19"]
[Round "8.18"]
[White "Bolivar Castro, Alejandro"]
[Black "Hernando Rodrigo, Jose Maria"]
[Result "*"]
[Annotator "ChessBase"]
[ECO "E94"]
[WhiteElo "2006"]
[BlackElo "2256"]
[PlyCount "28"]
[EventDate "2025.04.13"]
[EventType "swiss"]
[EventCountry "ESP"]
[SourceTitle "playchess.com"]
[Source "ChessBase"]
[SourceQuality "1"]
[TimeControl "5400+30"]

1. d4 {[%emt 0:00:03]} d6 {[%emt 0:00:03]} 2. c4 {[%emt 0:00:06]} e5 {[%emt 0:00:05]} 3. Nf3 {[%emt 0:00:05]} Nd7 {[%emt 0:00:13]} 4. Nc3 {[%emt 0:00:08]} Ngf6 {[%emt 0:00:09]} 5. e4 {[%emt 0:00:11]} g6 {[%emt 0:00:03]} 6. Be2 {[%emt 1:32:57]} Bg7 {[%emt 0:00:04]} 7. O-O {[%emt 0:00:11]} O-O {[%emt 0:00:03]} 8. Be3 {[%emt 0:00:14]} Qe7 {[%emt 0:00:14]} 9. d5 {[%emt 0:10:59]} Ng4 {[%emt 0:03:04]} 10. Bg5 {[%emt 0:04:16]} f6 {[%emt 1:31:32]} 11. Bh4 {[%emt 0:01:29]} g5 {[%emt 0:00:31]} 12. Bg3 {[%emt 0:00:45]} Nh6 {[%emt 0:00:04]} 13. Qd2 {[%emt 0:05:09]} a5 {[%emt 0:00:39]} 14. b3 {[%emt 0:03:33]} Nc5 {[%emt 0:00:22]} *

[Event "17th Memorial Lezcano Montalvo 2025"]
[Site "Gran Canaria"]
[Date "2025.04.19"]
[Round "8.19"]
[White "Fiorito, Fabian"]
[Black "Sanchez Gonzalez, Diego"]
[Result "1-0"]
[Annotator "RC"]
[ECO "E16"]
[WhiteElo "2268"]
[BlackElo "2025"]
[PlyCount "44"]
[EventDate "2025.04.13"]
[EventType "swiss"]
[EventCountry "ESP"]
[SourceTitle "playchess.com"]
[Source "ChessBase"]
[SourceQuality "1"]
[TimeControl "5400+30"]

1. Nf3 {[%emt 0:00:08]} Nf6 {[%emt 0:00:14]} 2. c4 {[%emt 0:01:01]} e6 {[%emt 0:00:56]} 3. g3 {[%emt 0:01:08]} b6 {[%emt 0:00:45]} 4. Bg2 {[%emt 0:00:20]} Bb7 {[%emt 0:00:07]} 5. O-O {[%emt 0:01:21]} g6 {[%emt 0:01:08]} 6. d4 {[%emt 0:05:17]} Bg7 {[%emt 0:01:08]} 7. Nc3 {[%emt 0:00:18]} d6 {[%emt 0:00:46]} 8. Qc2 {[%emt 0:06:05]} O-O {[%emt 0:01:29]} 9. e4 {[%emt 0:00:35]} Nfd7 {[%emt 0:01:57]} 10. Bg5 {[%emt 0:02:14]} f6 {[%emt 0:01:12]} 11. Be3 {[%emt 0:01:08]} e5 {[%emt 0:00:42]} 12. Rad1 {[%emt 0:02:26]} f5 {[%emt 0:00:48]} 13. dxe5 {[%emt 0:01:47]} Nxe5 {[%emt 0:01:26]} 14. Nxe5 {[%emt 0:15:01]} Bxe5 {[%emt 0:00:08]} 15. c5 {[%emt 0:01:32]} Ba6 {[%emt 0:23:20]} 16. Rfe1 {[%emt 0:01:18]} f4 {[%emt 0:07:43]} 17. gxf4 {[%emt 0:00:51]} Rxf4 {[%emt 0:01:24]} 18. Bxf4 {[%emt 0:00:54]} Bxf4 {[%emt 0:00:02]} 19. Nd5 {[%emt 0:01:46]} Be5 {[%emt 0:02:27]} 20. f4 {[%emt 0:00:38]} Bg7 {[%emt 0:02:45]} 21. cxd6 {[%emt 0:00:29]} Qxd6 {[%emt 0:00:17]} 22. e5 {[%emt 0:55:13]} Bc8 1-0

[Event "17th Memorial Lezcano Montalvo 2025"]
[Site "Gran Canaria"]
[Date "2025.04.19"]
[Round "8.19"]
[White "Moreno Diepa, Diego"]
[Black "Roquero Redondo, Miguel"]
[Result "*"]
[Annotator "ChessBase"]
[ECO "E16"]
[WhiteElo "2243"]
[BlackElo "2037"]
[PlyCount "26"]
[EventDate "2025.04.13"]
[EventType "swiss"]
[EventCountry "ESP"]
[SourceTitle "playchess.com"]
[Source "ChessBase"]
[SourceQuality "1"]
[TimeControl "5400+30"]

1. Nf3 {[%emt 0:00:08]} Nf6 {[%emt 0:00:14]} 2. c4 {[%emt 0:01:01]} e6 {[%emt 0:00:56]} 3. g3 {[%emt 0:01:08]} b6 {[%emt 0:00:45]} 4. Bg2 {[%emt 0:00:20]} Bb7 {[%emt 0:00:07]} 5. O-O {[%emt 1:30:23]} g6 {[%emt 0:01:08]} 6. d4 {[%emt 0:05:17]} Bg7 {[%emt 0:01:08]} 7. Nc3 {[%emt 0:00:18]} d6 {[%emt 0:00:46]} 8. Qc2 {[%emt 0:06:05]} O-O {[%emt 0:01:29]} 9. e4 {[%emt 0:00:35]} Nfd7 {[%emt 0:01:57]} 10. Bg5 {[%emt 0:02:14]} f6 {[%emt 0:01:12]} 11. Be3 {[%emt 0:01:08]} e5 {[%emt 0:00:42]} 12. Rad1 {[%emt 0:02:26]} f5 {[%emt 0:00:48]} 13. dxe5 {[%emt 0:01:47]} Nxe5 {[%emt 0:01:26]} *

[Event "17th Memorial Lezcano Montalvo 2025"]
[Site "Gran Canaria"]
[Date "2025.04.19"]
[Round "8.20"]
[White "Brito Garcia, Alfredo"]
[Black "Perez Rosales, Pedro"]
[Result "*"]
[Annotator "ChessBase"]
[ECO "C02"]
[WhiteElo "2214"]
[BlackElo "1942"]
[PlyCount "23"]
[EventDate "2025.04.13"]
[EventType "swiss"]
[EventCountry "ESP"]
[SourceTitle "playchess.com"]
[Source "ChessBase"]
[SourceQuality "1"]
[TimeControl "5400+30"]

1. e4 {[%emt 0:06:00]} e6 {[%emt 0:00:12]} 2. d4 {[%emt 0:00:49]} d5 {[%emt 0:00:06]} 3. e5 {[%emt 0:00:04]} c5 {[%emt 0:00:03]} 4. c3 {[%emt 0:00:11]} Nc6 {[%emt 0:00:03]} 5. Nf3 {[%emt 0:00:17]} Bd7 {[%emt 0:00:04]} 6. Be2 {[%emt 0:00:27]} Nge7 {[%emt 0:00:27]} 7. O-O {[%emt 0:00:34]} cxd4 {[%emt 0:00:05]} 8. cxd4 {[%emt 0:00:10]} Nf5 {[%emt 0:00:02]} 9. Nc3 {[%emt 0:01:13]} Be7 {[%emt 0:00:56]} 10. Bd3 {[%emt 0:00:23]} Bc8 {[%emt 0:06:22]} 11. a3 {[%emt 0:05:47]} O-O {[%emt 0:00:36]} 12. Be3 {[%emt 0:04:47]} *

[Event "17th Memorial Lezcano Montalvo 2025"]
[Site "Gran Canaria"]
[Date "2025.04.19"]
[Round "8.20"]
[White "Ramos Santana, Marcelino"]
[Black "Moreno Diepa, Diego"]
[Result "0-1"]
[Annotator "RC"]
[ECO "C02"]
[WhiteElo "1903"]
[BlackElo "2243"]
[PlyCount "86"]
[EventDate "2025.04.13"]
[EventType "swiss"]
[EventCountry "ESP"]
[SourceTitle "playchess.com"]
[Source "ChessBase"]
[SourceQuality "1"]
[TimeControl "5400+30"]

1. e4 {[%emt 0:06:00]} e6 {[%emt 0:00:12]} 2. d4 {[%emt 0:00:49]} d5 {[%emt 0:00:06]} 3. e5 {[%emt 0:00:04]} c5 {[%emt 0:00:03]} 4. c3 {[%emt 0:00:11]} Nc6 {[%emt 0:00:03]} 5. Nf3 {[%emt 0:00:17]} Bd7 {[%emt 0:00:04]} 6. Be2 {[%emt 0:00:27]} Nge7 {[%emt 0:00:27]} 7. O-O {[%emt 0:00:34]} cxd4 {[%emt 0:00:05]} 8. cxd4 {[%emt 0:00:10]} Nf5 {[%emt 0:00:02]} 9. Nc3 {[%emt 0:01:13]} Be7 {[%emt 0:00:56]} 10. Bd3 {[%emt 0:00:23]} Bc8 {[%emt 0:06:22]} 11. a3 {[%emt 0:05:47]} O-O {[%emt 0:00:36]} 12. Be3 {[%emt 0:04:47]} a6 {[%emt 0:05:40]} 13. Rc1 {[%emt 0:00:19]} f6 {[%emt 0:05:32]} 14. Bxf5 {[%emt 0:09:00]} exf5 {[%emt 0:00:33]} 15. Bf4 {[%emt 0:01:04]} g5 {[%emt 0:08:05]} 16. exf6 {[%emt 0:03:13]} Bxf6 {[%emt 0:00:40]} 17. Be5 {[%emt 0:01:15]} Be7 {[%emt 0:06:26]} 18. Na4 {[%emt 0:08:37]} Rf7 {[%emt 0:17:15]} 19. b4 {[%emt 0:01:51]} g4 {[%emt 0:03:30]} 20. Ne1 {[%emt 0:01:19]} Bg5 {[%emt 0:02:56]} 21. Rxc6 {[%emt 0:16:32]} bxc6 {[%emt 0:00:04]} 22. Nc5 {[%emt 0:00:11]} f4 {[%emt 0:01:05]} 23. Qa4 {[%emt 0:01:08]} Bd7 {[%emt 0:01:12]} 24. Ned3 {[%emt 0:01:00]} f3 {[%emt 0:02:11]} 25. g3 {[%emt 0:01:43]} Qe8 {[%emt 0:02:42]} 26. Qa5 {[%emt 0:08:00]} Bf5 {[%emt 0:01:25]} 27. Qa4 {[%emt 0:03:35]} Rfa7 {[%emt 0:02:40]} 28. Re1 {[%emt 0:01:30]} Re7 {[%emt 0:02:39]} 29. Qd1 {[%emt 0:01:22]} Qg6 {[%emt 0:02:45]} 30. h4 {[%emt 0:02:21]} gxh3 {[%emt 0:00:05]} 31. Qxf3 {[%emt 0:00:59]} Rf8 {[%emt 0:04:46]} 32. Qe2 {[%emt 0:00:39]} h5 {[%emt 0:01:33]} 33. Kh2 {[%emt 0:03:56]} Bg4 {[%emt 0:00:25]} 34. Qf1 {[%emt 0:01:11]} Bd2 {[%emt 0:02:48]} 35. f4 {[%emt 0:02:38]} Bxe1 {[%emt 0:03:07]} 36. Qxe1 {[%emt 0:00:03]} Bf5 {[%emt 0:00:08]} 37. Nf2 {[%emt 0:00:43]} Rfe8 {[%emt 0:01:36]} 38. Qe2 {[%emt 0:01:31]} Kh7 {[%emt 0:01:37]} 39. Qf3 {[%emt 0:02:15]} Rg8 {[%emt 0:00:45]} 40. Nxh3 {[%emt 0:01:58]} Bxh3 {[%emt 0:00:05]} 41. Kxh3 {[%emt 0:00:07]} Qf5+ {[%emt 0:00:43]} 42. Kh2 {[%emt 0:00:35]} h4 {[%emt 0:00:56]} 43. gxh4 {[%emt 0:01:00]} Rg4 {[%emt 0:00:52]} 0-1

[Event "17th Memorial Lezcano Montalvo 2025"]
[Site "Gran Canaria"]
[Date "2025.04.19"]
[Round "8.21"]
[White "Blanco Barros, Juan Carlos"]
[Black "Tytynnik, Artem"]
[Result "*"]
[Annotator "ChessBase"]
[ECO "B36"]
[WhiteElo "1941"]
[BlackElo "2209"]
[PlyCount "25"]
[EventDate "2025.04.13"]
[EventType "swiss"]
[EventCountry "ESP"]
[SourceTitle "playchess.com"]
[Source "ChessBase"]
[SourceQuality "1"]
[TimeControl "5400+30"]

1. d4 {[%emt 0:00:03]} Nf6 {[%emt 0:00:45]} 2. Nf3 {[%emt 0:00:14]} c5 {[%emt 0:00:26]} 3. c4 {[%emt 0:00:19]} cxd4 {[%emt 0:01:11]} 4. Nxd4 {[%emt 0:00:09]} Nc6 {[%emt 0:01:03]} 5. Nc3 {[%emt 0:00:24]} g6 {[%emt 0:00:23]} 6. e4 {[%emt 1:32:21]} d6 {[%emt 0:00:21]} 7. Be2 {[%emt 0:00:12]} Nxd4 {[%emt 0:03:18]} 8. Qxd4 {[%emt 0:00:07]} Bg7 {[%emt 0:00:08]} 9. Be3 {[%emt 0:00:19]} O-O {[%emt 0:00:11]} 10. Qd2 {[%emt 0:00:08]} Be6 {[%emt 0:03:02]} 11. Rd1 {[%emt 0:06:44]} Qa5 {[%emt 0:01:00]} 12. O-O {[%emt 1:27:35]} Rfc8 {[%emt 0:00:16]} 13. b3 {[%emt 0:01:45]} *